fUST/lending_fUST_20251116
["ID","MTS","AMOUNT","RATE_DAILY","PERIOD"]
[394108071,1763292577383,-1152.78335565,0.00014259,2]
[394108072,1763292577412,-1152.78335565,0.00014259,2]
[394108073,1763292577439,-477.42380686,0.00014259,2]
[394108074,1763292577468,-1152.78335565,0.00014259,2]
[394108075,1763292577500,-975.67889673,0.00014259,2]
[394108076,1763292577901,-177.10445892,0.00014259,2]
[394108077,1763292577915,-452.54453003,0.00014259,2]
[394108078,1763292577930,-47.45546997,0.00014259,2]
[394108079,1763292577939,-1105.32788568,0.00014259,2]
[394108080,1763292579532,-0.01,0.00014116,2]
[394108081,1763292579556,-9999.99,0.00014116,2]
[394108082,1763292579650,-47.45546997,0.00014259,2]
[394108083,1763292579682,-1152.78335565,0.00014259,2]
[394108084,1763292579714,-1152.78335565,0.00014259,2]
[394108085,1763292579748,-1152.78335565,0.00014259,2]
[394108086,1763292579783,-1152.78335565,0.00014259,2]
[394108087,1763292579961,-1152.78335565,0.00014259,2]
[394108088,1763292579995,-1152.78335565,0.00014259,2]
[394108089,1763292580026,-1152.78335565,0.00014259,2]
[394108090,1763292580058,-1152.78335565,0.00014259,2]
[394108091,1763292580127,-1152.78335565,0.00014259,2]
[394108092,1763292580157,-1152.78335565,0.00014259,2]
[394108093,1763292580187,-1152.78335565,0.00014259,2]
[394108094,1763292580221,-1152.78335565,0.00014259,2]
[394108095,1763292580290,-1152.78335565,0.00014259,2]
[394108096,1763292580320,-1152.78335565,0.00014259,2]
[394108097,1763292580349,-1152.78335565,0.00014259,2]
[394108098,1763292580378,-1152.78335565,0.00014259,2]
[394108099,1763292580572,-1085.53516881,0.00014259,2]
[394108100,1763292580585,-67.24818684,0.00014259,2]
[394108101,1763292580594,-1085.53516881,0.00014259,2]
[394108102,1763292580608,-685.98711975,0.00014259,2]
[394108103,1763292585747,-218.71965422,0.0001426,2]
[394108104,1763292585774,-996.4685206,0.0001426,2]
[394108105,1763292585805,-1200.0,0.00014302,2]
[394108106,1763292585849,-211.8121888,0.00014303,2]
[394108107,1763292585878,-300.0,0.00014303,2]
[394108108,1763292585906,-300.0,0.00014303,2]
[394108109,1763292585936,-300.0,0.00014303,2]
[394108110,1763292585965,-500.0,0.00014373,2]
[394108111,1763292585995,-500.0,0.00014373,2]
[394108112,1763292586025,-446.00927276,0.00014373,2]
[394108113,1763292586149,-53.99072724,0.00014373,2]
[394108114,1763292586177,-500.0,0.00014373,2]
[394108115,1763292586205,-500.0,0.00014373,2]
[394108116,1763292586232,-500.0,0.00014373,2]
[394108117,1763292586261,-500.0,0.00014373,2]
[394108118,1763292586288,-500.0,0.00014373,2]
[394108119,1763292586316,-500.0,0.00014373,2]
[394108120,1763292586342,-634.47472687,0.00014373,2]
[394108121,1763292586369,-500.0,0.00014373,2]
[394108122,1763292586395,-500.0,0.00014373,2]
[394108123,1763292586649,-53.99072724,0.00014396,2]
[394108124,1763292586664,-623.07909178,0.00014396,2]
[394108125,1763292586678,-10000.01,0.00014396,2]
[394108126,1763292586709,-2419.08981902,0.00014396,2]
[394108127,1763292586732,-5161.83036196,0.00014396,2]
[394108128,1763292586743,-2419.08981902,0.00014396,2]
[394108129,1763292586770,-10000.01,0.00014396,2]
[394108130,1763292586784,-5838.90018098,0.00014396,2]
[394108131,1763292586796,-1742.02,0.00014396,2]
[394108132,1763292586809,-10000.01,0.00014396,2]
[394108133,1763292588669,-3484.04,0.00014396,2]
[394108134,1763292588690,-3031.93,0.00014396,2]
[394108135,1763292588783,-10000.01,0.00014396,2]
[394108136,1763292588923,-1742.02,0.00014396,2]
[394108137,1763292588945,-6515.97,0.00014396,2]
[394108138,1763292594752,-4599.4346449,0.00014252,2]
[394108139,1763292594774,-801.1407102,0.00014252,2]
[394108140,1763292594856,-10000.01,0.00014396,2]
[394108141,1763292594989,-1742.02,0.00014396,2]
[394108142,1763292595013,-6515.97,0.00014396,2]
[394108143,1763292595122,-10000.01,0.00014396,2]
[394108144,1763292595254,-1742.02,0.00014396,2]
[394108145,1763292595275,-6515.97,0.00014396,2]
[394108146,1763292595378,-10000.01,0.00014396,2]
[394108147,1763292595507,-1742.02,0.00014396,2]
[394108148,1763292595528,-6515.97,0.00014396,2]
[394108186,1763292632244,-300.0,0.00014251,2]
[394108188,1763292632254,-1140.7,0.00014251,2]
[394108191,1763292632266,-59.3,0.00014251,2]
[394108192,1763292632276,-566.06181593,0.00014252,2]
[394108194,1763292632303,-72465.93818407,0.00014252,2]
[394108195,1763292632311,-3916.04663545,0.00014295,2]
[394108201,1763292638132,-1345.40362926,0.00014295,2]
[394108202,1763292638187,-2199.72614904,0.00014295,2]
[394108203,1763292638203,-500.0,0.00014295,2]
[394108204,1763292638243,-1453.965,0.00014295,2]
[394108213,1763292640256,-5009.01328906,0.00014295,2]
[394108215,1763292640311,-820.0,0.00014295,2]
[394108216,1763292640323,-3013.84529719,0.00014295,2]
[394108217,1763292640332,-13626.81890647,0.00014295,2]
[394108219,1763292641132,-3e-08,0.00014295,2]
[394108220,1763292641144,-4631.1810935,0.00014295,2]
[394108221,1763292641153,-18258.0,0.00014295,2]
[394108222,1763292641162,-18258.0,0.00014295,2]
[394108223,1763292641172,-18258.0,0.00014295,2]
[394108224,1763292641181,-1760.50100091,0.00014295,2]
[394108225,1763292641190,-500.0,0.00014373,2]
[394108226,1763292641199,-500.0,0.00014373,2]
[394108227,1763292641208,-500.0,0.00014373,2]
[394108228,1763292641218,-300.0,0.00014395,2]
[394108229,1763292641227,-151.0,0.00014396,2]
[394108230,1763292641236,-151.91205681,0.00014396,2]
[394108231,1763292641246,-500.0,0.00014403,2]
[394108232,1763292641255,-500.0,0.00014403,2]
[394108233,1763292641277,-151.0,0.00014403,2]
[394108234,1763292641288,-151.0,0.00014403,2]
[394108235,1763292641299,-151.0,0.00014403,2]
[394108236,1763292641309,-151.0,0.00014403,2]
[394108237,1763292641319,-151.0,0.00014403,2]
[394108238,1763292641329,-151.0,0.00014403,2]
[394108239,1763292641339,-151.0,0.00014403,2]
[394108240,1763292641348,-500.0,0.00014403,2]
[394108241,1763292641358,-153.35219416,0.00014403,2]
[394108242,1763292641368,-199.01850717,0.00014403,2]
[394108243,1763292641377,-13858.16239498,0.00014403,2]
[394108244,1763292641390,-511.60544266,0.00014403,2]
[394108250,1763292643695,-4738.73067976,0.00014403,2]
[394108251,1763292644082,-887.15701806,0.00014403,2]
[394108252,1763292644094,-1688.15574756,0.00014403,2]
[394108261,1763292646505,-28316.18871698,0.00014403,2]
[394108262,1763292646515,-210.5257945,0.00014403,2]
[394108263,1763292646525,-151.0,0.00014404,2]
[394108264,1763292646536,-151.0,0.00014404,2]
[394108265,1763292646545,-151.0,0.00014404,2]
[394108266,1763292646555,-500.0,0.00014404,2]
[394108267,1763292646564,-152.12052086,0.00014404,2]
[394108268,1763292646574,-152.63239838,0.00014404,2]
[394108269,1763292646583,-151.0,0.00014404,2]
[394108270,1763292646593,-151.0,0.00014404,2]
[394108271,1763292646602,-1000.0,0.00014404,2]
[394108272,1763292646611,-460.05,0.00014404,2]
[394108273,1763292646620,-427.5441238,0.00014413,2]
[394108274,1763292646629,-500.0,0.00014419,2]
[394108275,1763292646639,-500.0,0.00014419,2]
[394108276,1763292646648,-500.0,0.00014419,2]
[394108277,1763292646658,-500.0,0.00014419,2]
[394108278,1763292646668,-500.0,0.00014419,2]
[394108279,1763292646677,-500.0,0.00014419,2]
[394108280,1763292646687,-500.0,0.00014419,2]
[394108281,1763292646696,-500.0,0.00014419,2]
[394108282,1763292646706,-500.0,0.00014419,2]
[394108283,1763292646717,-500.0,0.00014419,2]
[394108284,1763292646726,-500.0,0.00014419,2]
[394108285,1763292646735,-500.0,0.00014419,2]
[394108286,1763292646745,-500.0,0.00014419,2]
[394108287,1763292646754,-294.76920178,0.00014419,2]
[394108288,1763292646764,-242.18428525,0.00014469,2]
[394108289,1763292646774,-505.80314539,0.00014473,2]
[394108290,1763292646785,-500.0,0.00014473,2]
[394108291,1763292646795,-381.26021609,0.00014473,2]
[394108292,1763292646807,-500.0,0.00014473,2]
[394108293,1763292646816,-500.0,0.00014473,2]
[394108294,1763292646825,-500.0,0.00014473,2]
[394108295,1763292646835,-500.0,0.00014473,2]
[394108296,1763292646844,-500.0,0.00014473,2]
[394108297,1763292646853,-500.0,0.00014473,2]
[394108298,1763292646863,-500.0,0.00014473,2]
[394108299,1763292646873,-500.0,0.00014473,2]
[394108300,1763292646883,-500.0,0.00014473,2]
[394108301,1763292646893,-500.0,0.0001454,2]
[394108302,1763292646902,-500.0,0.0001454,2]
[394108303,1763292646912,-151.0,0.0001454,2]
[394108304,1763292646922,-196.4633992,0.0001454,2]
[394108305,1763292646931,-153.40411126,0.0001454,2]
[394108306,1763292646940,-151.0,0.0001454,2]
[394108307,1763292646950,-225.11407678,0.0001454,2]
[394108308,1763292646960,-151.0,0.0001454,2]
[394108309,1763292646970,-500.0,0.0001454,2]
[394108310,1763292646979,-500.0,0.00014541,2]
[394108311,1763292646989,-151.0,0.00014541,2]
[394108312,1763292646998,-153.47801532,0.00014541,2]
[394108313,1763292647008,-200.0,0.00014567,2]
[394108314,1763292647018,-500.0,0.00014573,2]
[394108315,1763292647029,-502.43931167,0.00014573,2]
[394108316,1763292647039,-151.0,0.000146,2]
[394108317,1763292647049,-151.0,0.000146,2]
[394108318,1763292647059,-2183.02305047,0.00014635,2]
[394108319,1763292647068,-500.0,0.00014677,2]
[394108320,1763292647077,-151.0,0.00014677,2]
[394108321,1763292647087,-151.0,0.00014677,2]
[394108322,1763292647097,-289.48371257,0.00014677,2]
[394108323,1763292647106,-500.0,0.00014677,2]
[394108324,1763292647116,-500.0,0.00014678,2]
[394108325,1763292647126,-288.59302677,0.00014678,2]
[394108326,1763292647136,-411.39,0.00014741,2]
[394108327,1763292647145,-3701.75191009,0.00014753,2]
[394108328,1763292647154,-236.6457974,0.00014814,2]
[394108329,1763292647163,-201.25833144,0.00014814,2]
[394108330,1763292647172,-500.0,0.00014814,2]
[394108331,1763292647182,-248.05044895,0.00014814,2]
[394108332,1763292647191,-500.0,0.00014815,2]
[394108333,1763292647201,-176.31,0.00014856,2]
[394108334,1763292647212,-184.64638645,0.000149,2]
[394108335,1763292647221,-1000.0,0.00014921,2]
[394108336,1763292647231,-1000.0,0.00014921,2]
[394108337,1763292647240,-504.23182673,0.00014921,2]
[394108338,1763292647249,-1000.0,0.00014921,2]
[394108339,1763292647259,-1000.0,0.00014921,2]
[394108340,1763292647268,-500.0,0.00014921,2]
[394108341,1763292647277,-1000.0,0.00014921,2]
[394108342,1763292647288,-1000.0,0.00014921,2]
[394108343,1763292647298,-1000.0,0.00014921,2]
[394108344,1763292647307,-500.0,0.00014951,2]
[394108345,1763292647317,-527.21110654,0.00014952,2]
[394108346,1763292647327,-500.0,0.00014968,2]
[394108347,1763292647337,-500.0,0.00014968,2]
[394108348,1763292647346,-500.0,0.00014968,2]
[394108349,1763292647356,-1000.0,0.00015021,2]
[394108350,1763292647365,-746.76631475,0.00015021,2]
[394108351,1763292647375,-1012.13460884,0.00015021,2]
[394108352,1763292647386,-1000.0,0.00015021,2]
[394108353,1763292647395,-1000.0,0.00015021,2]
[394108354,1763292647404,-821.16518361,0.00015021,2]
[394108355,1763292647414,-1000.0,0.00015021,2]
[394108356,1763292647423,-1008.7651267,0.00015021,2]
[394108357,1763292647433,-1000.0,0.00015021,2]
[394108358,1763292647443,-1000.0,0.00015021,2]
[394108359,1763292647452,-203.031955,0.00015068,2]
[394108360,1763292647462,-800.0,0.00015068,2]
[394108361,1763292647472,-500.0,0.00015088,2]
[394108362,1763292647562,-1000.0,0.00015121,2]
[394108363,1763292647585,-470.2000004,0.00015225,2]
[394108364,1763292647594,-1680.0,0.00015416,2]
[394108365,1763292647603,-1506.54183933,0.00015468,2]
[394108366,1763292647612,-1500.0,0.00015468,2]
[394108367,1763292647621,-1500.0,0.00015468,2]
[394108368,1763292647631,-1500.0,0.00015468,2]
[394108369,1763292647640,-1369.34854681,0.00015468,2]
[394108370,1763292647649,-1500.0,0.00015468,2]
[394108371,1763292647658,-1500.0,0.00015468,2]
[394108372,1763292647668,-1000.0,0.00015516,2]
[394108373,1763292647678,-1000.0,0.00015516,2]
[394108374,1763292647688,-195.62038484,0.00015516,2]
[394108375,1763292647697,-8475.35813597,0.00015542,2]
[394108376,1763292647707,-1584.91683742,0.00015568,2]
[394108377,1763292647716,-660.05628077,0.00015568,2]
[394108378,1763292647725,-323.1161992,0.00015568,2]
[394108379,1763292647734,-1500.0,0.00015568,2]
[394108380,1763292647744,-325.52396653,0.00015568,2]
[394108381,1763292647753,-1500.0,0.00015568,2]
[394108382,1763292647763,-10000.0,0.00015568,2]
[394108383,1763292647772,-100000.0,0.00015612,2]
[394108384,1763292647781,-300.0,0.00015642,2]
[394108385,1763292647790,-300.0,0.00015642,2]
[394108386,1763292647800,-300.0,0.00015642,2]
[394108387,1763292647813,-300.0,0.00015642,2]
[394108388,1763292647822,-300.0,0.00015642,2]
[394108389,1763292647835,-300.0,0.00015642,2]
[394108390,1763292647845,-300.0,0.00015642,2]
[394108391,1763292647854,-300.0,0.00015642,2]
[394108392,1763292647863,-300.0,0.00015642,2]
[394108393,1763292647872,-300.0,0.00015642,2]
[394108394,1763292647882,-300.0,0.00015642,2]
[394108395,1763292647892,-300.0,0.00015642,2]
[394108396,1763292647901,-300.0,0.00015642,2]
[394108397,1763292647911,-300.0,0.00015642,2]
[394108398,1763292647920,-300.0,0.00015642,2]
[394108399,1763292647929,-1500.0,0.00015668,2]
[394108400,1763292647939,-500.0,0.00015673,2]
[394108401,1763292647948,-500.0,0.00015673,2]
[394108402,1763292647958,-500.0,0.00015673,2]
[394108403,1763292647967,-500.0,0.00015673,2]
[394108404,1763292647976,-501.50822155,0.00015673,2]
[394108405,1763292647986,-501.21945082,0.00015673,2]
[394108406,1763292647995,-500.0,0.00015673,2]
[394108407,1763292648004,-501.9660549,0.00015673,2]
[394108408,1763292648014,-500.0,0.00015673,2]
[394108409,1763292648023,-500.0,0.00015673,2]
[394108410,1763292648033,-162.74059804,0.00015673,2]
[394108411,1763292648042,-500.0,0.00015673,2]
[394108412,1763292648051,-500.0,0.00015673,2]
[394108413,1763292648061,-500.0,0.00015673,2]
[394108414,1763292648070,-500.0,0.00015673,2]
[394108415,1763292648080,-500.0,0.00015673,2]
[394108416,1763292648090,-500.0,0.00015673,2]
[394108417,1763292648100,-500.0,0.00015673,2]
[394108418,1763292648109,-500.0,0.00015673,2]
[394108419,1763292648120,-500.0,0.00015673,2]
[394108420,1763292648129,-500.0,0.00015673,2]
[394108421,1763292648138,-500.0,0.00015673,2]
[394108422,1763292648147,-617.96000574,0.00015673,2]
[394108423,1763292648156,-500.0,0.00015673,2]
[394108424,1763292648165,-500.0,0.00015673,2]
[394108425,1763292648175,-500.0,0.00015673,2]
[394108426,1763292648184,-1680.0,0.00015676,2]
[394108427,1763292648193,-12441.7255809,0.00015737,2]
[394108428,1763292648202,-420.0,0.00015764,2]
[394108429,1763292648211,-600.0,0.000158,2]
[394108430,1763292648221,-2000.0,0.00016016,2]
[394108431,1763292648230,-373.38969178,0.00016016,2]
[394108432,1763292648241,-2000.0,0.00016016,2]
[394108433,1763292648250,-1125.10021991,0.00016016,2]
[394108434,1763292648260,-2000.0,0.00016016,2]
[394108435,1763292648269,-1500.0,0.00016064,2]
[394108436,1763292648279,-1500.0,0.00016064,2]
[394108437,1763292648290,-914.47210687,0.00016084,2]
[394108438,1763292648299,-2000.0,0.00016116,2]
[394108439,1763292648309,-2000.0,0.00016116,2]
[394108440,1763292648318,-1165.10438486,0.00016164,2]
[394108441,1763292648327,-996.4685206,0.0001621,2]
[394108442,1763292648336,-222.2729613,0.00016216,2]
[394108443,1763292648346,-507.59546537,0.00016221,2]
[394108444,1763292648355,-500.38275658,0.00016221,2]
[394108445,1763292648365,-501.97989069,0.00016221,2]
[394108446,1763292648374,-1000.0,0.00016221,2]
[394108447,1763292648383,-1000.0,0.00016221,2]
[394108448,1763292648393,-1000.0,0.00016221,2]
[394108449,1763292648402,-1000.0,0.00016221,2]
[394108450,1763292648411,-1000.0,0.00016221,2]
[394108451,1763292648421,-1000.0,0.00016221,2]
[394108452,1763292648430,-1000.0,0.00016221,2]
[394108453,1763292648440,-1000.0,0.00016221,2]
[394108454,1763292648449,-1000.0,0.00016221,2]
[394108455,1763292648459,-1000.0,0.00016221,2]
[394108456,1763292648468,-1000.0,0.00016221,2]
[394108457,1763292648477,-1000.0,0.00016221,2]
[394108458,1763292648487,-1000.0,0.00016221,2]
[394108459,1763292648496,-1000.0,0.00016221,2]
[394108460,1763292648505,-258.08919198,0.0001626,2]
[394108461,1763292648515,-200.0,0.00016437,2]
[394108462,1763292648524,-200.0,0.00016437,2]
[394108463,1763292648534,-500.0,0.00016438,2]
[394108464,1763292648544,-181.40955117,0.00016438,2]
[394108465,1763292648554,-500.0,0.00016438,2]
[394108466,1763292648563,-596.08635923,0.00016438,2]
[394108467,1763292648572,-627.6541524,0.00016438,2]
[394108468,1763292648582,-596.08635923,0.00016438,2]
[394108469,1763292648591,-500.0,0.00016438,2]
[394108470,1763292648600,-596.08635923,0.00016438,2]
[394108471,1763292648609,-596.08635923,0.00016438,2]
[394108472,1763292648618,-500.0,0.00016438,2]
[394108473,1763292648627,-596.08635923,0.00016438,2]
[394108474,1763292648636,-500.0,0.00016438,2]
[394108475,1763292648645,-596.08635923,0.00016438,2]
[394108476,1763292648655,-500.0,0.00016438,2]
[394108477,1763292648663,-596.08635923,0.00016438,2]
[394108478,1763292648673,-596.08635923,0.00016438,2]
[394108479,1763292648681,-500.0,0.00016438,2]
[394108480,1763292648691,-596.08635923,0.00016438,2]
[394108481,1763292648699,-596.08635923,0.00016438,2]
[394108482,1763292648709,-500.0,0.00016438,2]
[394108483,1763292648719,-596.08635923,0.00016438,2]
[394108484,1763292648728,-596.08635923,0.00016438,2]
[394108485,1763292648737,-596.08635923,0.00016438,2]
[394108486,1763292648747,-596.08635923,0.00016438,2]
[394108487,1763292648756,-596.08635923,0.00016438,2]
[394108488,1763292648766,-596.08635923,0.00016438,2]
[394108489,1763292648775,-596.08635923,0.00016438,2]
[394108490,1763292648785,-596.08635923,0.00016438,2]
[394108491,1763292648794,-596.08635923,0.00016438,2]
[394108492,1763292648804,-596.08635923,0.00016438,2]
[394108493,1763292648816,-596.08635923,0.00016438,2]
[394108494,1763292648825,-596.08635923,0.00016438,2]
[394108495,1763292648835,-596.08635923,0.00016438,2]
[394108496,1763292648844,-596.08635923,0.00016438,2]
[394108497,1763292648854,-596.08635923,0.00016438,2]
[394108498,1763292648863,-596.08635923,0.00016438,2]
[394108499,1763292648872,-596.08635923,0.00016438,2]
[394108500,1763292648881,-596.08635923,0.00016438,2]
[394108501,1763292648891,-596.08635923,0.00016438,2]
[394108502,1763292648900,-596.08635923,0.00016438,2]
[394108503,1763292648910,-596.08635923,0.00016438,2]
[394108504,1763292648920,-596.08635923,0.00016438,2]
[394108505,1763292648929,-596.08635923,0.00016438,2]
[394108506,1763292648939,-596.08635923,0.00016438,2]
[394108507,1763292648949,-596.08635923,0.00016438,2]
[394108508,1763292648958,-596.08635923,0.00016438,2]
[394108509,1763292648967,-596.08635923,0.00016438,2]
[394108510,1763292648979,-596.08635923,0.00016438,2]
[394108511,1763292648988,-596.08635923,0.00016438,2]
[394108512,1763292648998,-596.08635923,0.00016438,2]
[394108513,1763292649007,-596.08635923,0.00016438,2]
[394108514,1763292649017,-596.08635923,0.00016438,2]
[394108515,1763292649027,-596.08635923,0.00016438,2]
[394108516,1763292649037,-596.08635923,0.00016438,2]
[394108517,1763292649047,-596.08635923,0.00016438,2]
[394108518,1763292649057,-596.08635923,0.00016438,2]
[394108519,1763292649067,-596.08635923,0.00016438,2]
[394108520,1763292649076,-596.08635923,0.00016438,2]
[394108521,1763292649086,-596.08635923,0.00016438,2]
[394108522,1763292649096,-596.08635923,0.00016438,2]
[394108523,1763292649105,-596.08635923,0.00016438,2]
[394108524,1763292649116,-596.08635923,0.00016438,2]
[394108525,1763292649125,-596.08635923,0.00016438,2]
[394108526,1763292649135,-596.08635923,0.00016438,2]
[394108527,1763292649144,-596.08635923,0.00016438,2]
[394108528,1763292649154,-596.08635923,0.00016438,2]
[394108529,1763292649164,-596.08635923,0.00016438,2]
[394108530,1763292649173,-596.08635923,0.00016438,2]
[394108531,1763292649183,-596.08635923,0.00016438,2]
[394108532,1763292649192,-596.08635923,0.00016438,2]
[394108533,1763292649201,-596.08635923,0.00016438,2]
[394108534,1763292649211,-596.08635923,0.00016438,2]
[394108535,1763292649220,-596.08635923,0.00016438,2]
[394108536,1763292649230,-596.08635923,0.00016438,2]
[394108537,1763292649239,-615.39594118,0.00016438,2]
[394108538,1763292649249,-615.39594118,0.00016438,2]
[394108539,1763292649259,-615.39594118,0.00016438,2]
[394108540,1763292649268,-500.0,0.00016438,2]
[394108541,1763292649353,-615.39594118,0.00016438,2]
[394108542,1763292649364,-500.0,0.00016438,2]
[394108543,1763292649373,-615.39594118,0.00016438,2]
[394108544,1763292649383,-193.94381726,0.00016438,2]
[394108545,1763292649392,-615.39594118,0.00016438,2]
[394108546,1763292649402,-615.39594118,0.00016438,2]
[394108547,1763292649411,-500.0,0.00016438,2]
[394108548,1763292649421,-615.39594118,0.00016438,2]
[394108549,1763292649431,-615.39594118,0.00016438,2]
[394108550,1763292649441,-615.39594118,0.00016438,2]
[394108551,1763292649451,-615.39594118,0.00016438,2]
[394108552,1763292649460,-615.39594118,0.00016438,2]
[394108553,1763292649470,-615.39594118,0.00016438,2]
[394108554,1763292649479,-615.39594118,0.00016438,2]
[394108555,1763292649488,-615.39594118,0.00016438,2]
[394108556,1763292649498,-615.39594118,0.00016438,2]
[394108557,1763292649508,-615.39594118,0.00016438,2]
[394108558,1763292649518,-615.39594118,0.00016438,2]
[394108559,1763292649527,-615.39594118,0.00016438,2]
[394108560,1763292649538,-615.39594118,0.00016438,2]
[394108561,1763292649548,-615.39594118,0.00016438,2]
[394108562,1763292649557,-615.39594118,0.00016438,2]
[394108563,1763292649567,-615.39594118,0.00016438,2]
[394108564,1763292649576,-615.39594118,0.00016438,2]
[394108565,1763292649585,-615.39594118,0.00016438,2]
[394108566,1763292649597,-8550.09666966,0.00016449,2]
[394108567,1763292649607,-500.0,0.00016473,2]
[394108568,1763292649617,-500.0,0.00016473,2]
[394108569,1763292649626,-500.0,0.00016473,2]
[394108570,1763292649636,-500.0,0.00016473,2]
[394108571,1763292649645,-501.94939123,0.00016473,2]
[394108572,1763292649655,-170.17712094,0.00016473,2]
[394108573,1763292649664,-501.76391598,0.00016473,2]
[394108574,1763292649673,-500.0,0.00016473,2]
[394108575,1763292649683,-158.90751384,0.00016473,2]
[394108576,1763292649692,-500.0,0.00016473,2]
[394108577,1763292649701,-500.0,0.00016473,2]
[394108578,1763292649711,-500.0,0.00016473,2]
[394108579,1763292649720,-500.0,0.00016473,2]
[394108580,1763292649729,-500.0,0.00016473,2]
[394108581,1763292649738,-500.0,0.00016473,2]
[394108582,1763292649748,-500.0,0.00016473,2]
[394108583,1763292649758,-500.0,0.00016473,2]
[394108584,1763292649767,-500.0,0.00016473,2]
[394108585,1763292649776,-500.0,0.00016473,2]
[394108586,1763292649787,-500.0,0.00016473,2]
[394108587,1763292649796,-500.0,0.00016473,2]
[394108588,1763292649806,-504.11316511,0.00016473,2]
[394108589,1763292649819,-988.0,0.00016498,2]
[394108590,1763292649828,-629.0,0.00016498,2]
[394108591,1763292649837,-2149.0,0.00016498,2]
[394108592,1763292649847,-413.0,0.00016498,2]
[394108593,1763292649856,-1360.27846189,0.00016528,2]
[394108594,1763292649865,-160.0,0.00016564,2]
[394108595,1763292649875,-1213.236384,0.00016564,2]
[394108596,1763292649884,-163.05349914,0.00016564,2]
[394108597,1763292649894,-2500.0,0.00016564,2]
[394108598,1763292649903,-2000.0,0.00016612,2]
[394108599,1763292649913,-2000.0,0.00016612,2]
[394108600,1763292649923,-2500.0,0.00016664,2]
[394108601,1763292649933,-2500.0,0.00016664,2]
[394108602,1763292649942,-150.0,0.00016744,2]
[394108603,1763292649952,-150.0,0.00016744,2]
[394108604,1763292649962,-150.0,0.00016744,2]
[394108605,1763292649971,-1500.0,0.00016768,2]
[394108606,1763292649980,-1500.0,0.00016768,2]
[394108607,1763292649990,-242.31047375,0.00016768,2]
[394108608,1763292649999,-1500.0,0.00016768,2]
[394108609,1763292650009,-1500.0,0.00016768,2]
[394108610,1763292650018,-1500.0,0.00016768,2]
[394108611,1763292650027,-1500.0,0.00016768,2]
[394108612,1763292650038,-1030.17650312,0.00016768,2]
[394108613,1763292650048,-1500.0,0.00016768,2]
[394108614,1763292650057,-1500.0,0.00016768,2]
[394108615,1763292650067,-1500.0,0.00016768,2]
[394108616,1763292650077,-1534.57844068,0.00016768,2]
[394108617,1763292650086,-413.10270248,0.00016768,2]
[394108618,1763292650096,-1500.0,0.00016768,2]
[394108619,1763292650105,-557.42203347,0.00016797,2]
[394108620,1763292650115,-444.64879491,0.00016836,2]
[394108621,1763292650124,-2351.0,0.00016888,2]
[394108622,1763292650133,-8423.54889001,0.00017,2]
[394108623,1763292650143,-973.24878984,0.00017021,2]
[394108624,1763292650152,-1135.04221478,0.00017021,2]
[394108625,1763292650162,-1001.61656777,0.00017021,2]
[394108626,1763292650171,-717.64578076,0.00017021,2]
[394108627,1763292650180,-948.9906155,0.00017021,2]
[394108628,1763292650189,-1000.0,0.00017021,2]
[394108629,1763292650199,-1000.0,0.00017021,2]
[394108630,1763292650208,-1000.0,0.00017021,2]
[394108631,1763292650217,-692.35024442,0.00017021,2]
[394108632,1763292650226,-1000.0,0.00017021,2]
[394108633,1763292650235,-744.07535815,0.00017021,2]
[394108634,1763292650244,-317.70323756,0.00017021,2]
[394108635,1763292650254,-1000.0,0.00017021,2]
[394108636,1763292650263,-1000.0,0.00017021,2]
[394108637,1763292650272,-1000.0,0.00017021,2]
[394108638,1763292650281,-500.81098088,0.00017069,2]
[394108639,1763292650291,-500.0,0.00017069,2]